fUST/lending_fUST_20240707
["ID","MTS","AMOUNT","RATE_DAILY","PERIOD"]
[331402758,1720347110673,-406.35800128,0.00044383,120]
[331402759,1720347110684,-500.0,0.00044383,120]
[331402760,1720347110694,-841.97,0.00044383,120]
[331402761,1720347110704,-500.0,0.00044383,120]
[331402762,1720347110714,-500.0,0.00044383,120]
[331402763,1720347110723,-500.0,0.00044383,120]
[331402764,1720347110735,-500.0,0.00044383,120]
[331402765,1720347110744,-1485.95,0.00044383,120]
[331402766,1720347110755,-500.0,0.00044383,120]
[331402767,1720347110765,-2654.48,0.00044383,120]
[331402768,1720347110774,-2654.48,0.00044383,120]
[331402769,1720347110784,-500.0,0.00044383,120]
[331402770,1720347110798,-7224.58,0.00044383,120]
[331402771,1720347110807,-500.0,0.00044383,120]
[331402772,1720347110816,-502.62147362,0.00044383,120]
[331402773,1720347110826,-500.0,0.00044383,120]
[331402774,1720347110835,-500.0,0.00044383,120]
[331402775,1720347110844,-2906.61,0.00044383,120]
[331402776,1720347110853,-530.01,0.00044383,120]
[331402777,1720347110863,-500.0,0.00044383,120]
[331402778,1720347110872,-778.38,0.00044383,120]
[331402779,1720347110882,-500.0,0.00044383,120]
[331402780,1720347110891,-500.0,0.00044383,120]
[331402781,1720347110901,-641.22,0.00044383,120]
[331402782,1720347110910,-500.0,0.00044383,120]
[331402783,1720347110919,-677.83,0.00044383,120]
[331402784,1720347110929,-500.0,0.00044383,120]
[331402785,1720347110939,-500.0,0.00044383,120]
[331402786,1720347110949,-500.0,0.00044383,120]
[331402787,1720347110959,-500.0,0.00044383,20]
[331402788,1720347110969,-500.0,0.00044383,120]
[331402789,1720347110978,-316.30495166,0.00044383,120]
[331402790,1720347110988,-950.32,0.00044383,120]
[331402791,1720347110997,-500.0,0.00044383,120]
[331402792,1720347111007,-500.0,0.00044383,120]
[331402793,1720347111016,-791.08,0.00044383,120]
[331402794,1720347111025,-500.0,0.00044383,120]
[331402795,1720347111035,-4029.35,0.00044383,120]
[331402796,1720347111044,-500.0,0.00044383,120]
[331402797,1720347111053,-3693.57,0.00044383,120]
[331402798,1720347111063,-500.0,0.00044383,120]
[331402799,1720347111072,-1139.2,0.00044383,120]
[331402800,1720347111081,-679.83,0.00044383,120]
[331402801,1720347111091,-500.0,0.00044383,120]
[331402802,1720347111100,-500.0,0.00044383,120]
[331402803,1720347111113,-500.0,0.00044383,120]
[331402804,1720347111122,-500.0,0.00044383,120]
[331402805,1720347111132,-500.0,0.00044383,120]
[331402806,1720347111141,-681.62,0.00044383,120]
[331402807,1720347111150,-841.38,0.00044383,120]
[331402808,1720347111159,-19997.62,0.00044383,120]
[331402809,1720347111169,-500.0,0.00044383,120]
[331402810,1720347111179,-500.0,0.00044383,120]
[331402811,1720347111188,-500.0,0.00044383,120]
[331402812,1720347111198,-1478.86,0.00044383,120]
[331402813,1720347111207,-500.0,0.00044383,120]
[331402814,1720347111363,-500.0,0.00044383,120]
[331402815,1720347111373,-500.0,0.00044383,120]
[331402816,1720347111384,-500.0,0.00044383,120]
[331402817,1720347111394,-9165.57,0.00044383,120]
[331402818,1720347111403,-500.0,0.00044383,120]
[331402819,1720347111415,-500.0,0.00044383,120]
[331402820,1720347111424,-400.01195422,0.00044383,120]
[331402821,1720347111434,-500.0,0.00044383,120]
[331402822,1720347111444,-500.0,0.00044383,120]
[331402823,1720347111454,-500.0,0.00044383,120]
[331402824,1720347111463,-500.0,0.00044383,120]
[331402825,1720347111472,-586.44174005,0.00044383,120]
[331402826,1720347111482,-500.0,0.00044383,120]
[331402827,1720347111492,-500.0,0.00044383,120]
[331402828,1720347111503,-2498.75,0.00044383,120]
[331402829,1720347111512,-500.0,0.00044383,120]
[331402830,1720347111522,-500.0,0.00044383,120]
[331402831,1720347111531,-500.0,0.00044383,120]
[331402832,1720347111541,-500.0,0.00044383,120]
[331402833,1720347111551,-1179.34,0.00044383,120]
[331402834,1720347111560,-500.0,0.00044383,120]
[331402835,1720347111569,-500.0,0.00044383,120]
[331402836,1720347111579,-500.0,0.00044383,120]
[331402837,1720347111588,-808.69,0.00044383,120]
[331402838,1720347111597,-500.0,0.00044383,120]
[331402839,1720347111606,-500.0,0.00044383,120]
[331402840,1720347111615,-500.0,0.00044383,120]
[331402841,1720347111625,-159.91314919,0.00044383,120]
[331402842,1720347111634,-1048.51,0.00044383,120]
[331402843,1720347111643,-500.0,0.00044383,120]
[331402844,1720347111653,-2474.14,0.00044383,120]
[331402845,1720347111664,-539.13,0.00044383,120]
[331402846,1720347111674,-500.0,0.00044383,120]
[331402847,1720347111683,-225.15466269,0.00044383,120]
[331402848,1720347111698,-587.02,0.00044383,120]
[331402849,1720347111708,-500.0,0.00044383,120]
[331402850,1720347111717,-500.0,0.00044383,30]
[331402851,1720347111727,-500.0,0.00044383,120]
[331402852,1720347111737,-500.0,0.00044383,120]
[331402853,1720347111748,-3741.22,0.00044383,120]
[331402854,1720347111758,-2000.34,0.00044383,120]
[331402855,1720347111768,-531.11,0.00044383,120]
[331402856,1720347111778,-500.0,0.00044383,120]
[331402857,1720347111790,-500.0,0.00044383,120]
[331402858,1720347111802,-500.0,0.00044383,120]
[331402859,1720347111811,-780.81,0.00044383,120]
[331402860,1720347111821,-500.0,0.00044383,120]
[331402861,1720347111832,-500.0,0.00044383,120]
[331402862,1720347111843,-500.0,0.00044383,120]
[331402863,1720347111855,-500.0,0.00044383,120]
[331402864,1720347111867,-500.0,0.00044383,120]
[331402865,1720347111876,-500.0,0.00044383,120]
[331402866,1720347111887,-500.0,0.00044383,120]
[331402867,1720347111897,-500.0,0.00044383,120]
[331402868,1720347111909,-500.0,0.00044383,120]
[331402869,1720347111919,-19236.53,0.00044383,120]
[331402870,1720347111930,-500.0,0.00044383,120]
[331402871,1720347111939,-500.0,0.00044383,120]
[331402872,1720347111948,-230.61460439,0.00044383,120]
[331402873,1720347111958,-200.92,0.00044383,120]
[331402874,1720347111969,-3413.69,0.00044383,120]
[331402875,1720347111979,-711.18,0.00044383,120]
[331402876,1720347111990,-500.0,0.00044383,120]
[331402877,1720347112001,-500.0,0.00044383,120]
[331402878,1720347112011,-1121.56,0.00044383,120]
[331402879,1720347112021,-500.0,0.00044383,120]
[331402880,1720347112030,-1250.27,0.00044383,120]
[331402881,1720347112041,-500.0,0.00044383,120]
[331402882,1720347112051,-504.04426348,0.00044383,120]
[331402883,1720347112060,-500.0,0.00044383,120]
[331402884,1720347112071,-500.0,0.00044383,120]
[331402885,1720347112080,-500.0,0.00044383,120]
[331402886,1720347112090,-500.0,0.00044383,120]
[331402887,1720347112100,-500.0,0.00044383,120]
[331402888,1720347112111,-500.0,0.00044383,120]
[331402889,1720347112121,-500.0,0.00044383,120]
[331402890,1720347112131,-734.73,0.00044383,120]
[331402891,1720347112142,-1092.13,0.00044383,120]
[331402892,1720347112153,-457.69120518,0.00044383,120]
[331402893,1720347112162,-500.0,0.00044383,120]
[331402894,1720347112172,-500.0,0.00044383,120]
[331402895,1720347112183,-177.19921427,0.00044383,120]
[331402896,1720347112194,-1828.14,0.00044383,120]
[331402897,1720347112205,-500.0,0.00044383,120]
[331402898,1720347112215,-500.0,0.00044383,120]
[331402899,1720347112225,-2409.9,0.00044383,120]
[331402900,1720347112236,-1905.14,0.00044383,120]
[331402901,1720347112246,-1746.38,0.00044383,120]
[331402902,1720347112257,-882.47,0.00044383,120]
[331402903,1720347112266,-2825.71,0.00044383,120]
[331402904,1720347112275,-500.0,0.00044383,120]
[331402905,1720347112284,-500.0,0.00044383,120]
[331402906,1720347112294,-500.0,0.00044383,120]
[331402907,1720347112304,-500.0,0.00044383,120]
[331402908,1720347112313,-639.95,0.00044383,120]
[331402909,1720347112323,-500.0,0.00044383,120]
[331402910,1720347112333,-500.0,0.00044383,120]
[331402911,1720347112342,-500.0,0.00044383,120]
[331402912,1720347112351,-500.0,0.00044383,120]
[331402913,1720347112360,-1399.76,0.00044383,120]
[331402914,1720347112371,-1399.76,0.00044383,120]
[331402915,1720347112380,-500.0,0.00044383,120]
[331402916,1720347112389,-1122.0,0.00044383,120]
[331402917,1720347112399,-1122.0,0.00044383,120]
[331402918,1720347112409,-500.0,0.00044383,120]
[331402919,1720347112418,-500.0,0.00044383,120]
[331402920,1720347112428,-428.64575951,0.00044383,120]
[331402921,1720347112438,-193.1,0.00044383,120]
[331402922,1720347112447,-500.0,0.00044383,120]
[331402923,1720347112458,-500.0,0.00044383,120]
[331402924,1720347112468,-1802.35,0.00044383,120]
[331402925,1720347112478,-375.78987406,0.00044383,120]
[331402926,1720347112487,-1426.86,0.00044383,120]
[331402927,1720347112497,-500.0,0.00044383,120]
[331402928,1720347112506,-500.0,0.00044383,120]
[331402929,1720347112515,-500.0,0.00044383,120]
[331402930,1720347112525,-500.0,0.00044383,120]
[331402931,1720347112535,-500.0,0.00044383,120]
[331402932,1720347112545,-500.0,0.00044383,120]
[331402933,1720347112554,-500.0,0.00044383,120]
[331402934,1720347112564,-500.0,0.00044383,120]
[331402935,1720347112574,-500.69000949,0.00044383,120]
[331402936,1720347112583,-500.0,0.00044383,120]
[331402937,1720347112593,-500.0,0.00044383,120]
[331402938,1720347112602,-188.04326466,0.00044383,120]
[331402939,1720347112611,-500.0,0.00044383,2]
[331402940,1720347112621,-500.0,0.00044383,120]
[331402941,1720347112631,-500.0,0.00044383,120]
[331402942,1720347112641,-500.0,0.00044383,120]
[331402943,1720347112650,-500.0,0.00044383,120]
[331402944,1720347112660,-500.0,0.00044383,120]
[331402945,1720347112670,-500.0,0.00044383,120]
[331402946,1720347112679,-418.25,0.00044383,120]
[331402947,1720347112688,-500.0,0.00044383,120]
[331402948,1720347112698,-500.0,0.00044383,120]
[331402949,1720347112708,-500.0,0.00044383,120]
[331402950,1720347112717,-1266.29,0.00044383,120]
[331402951,1720347112727,-500.0,0.00044383,120]
[331402952,1720347112736,-500.0,0.00044383,120]
[331402953,1720347112746,-500.0,0.00044383,120]
[331402954,1720347112755,-500.0,0.00044383,120]
[331402955,1720347112765,-500.0,0.00044383,120]
[331402956,1720347112774,-480.42,0.00044383,120]
[331402957,1720347112783,-500.0,0.00044383,120]
[331402958,1720347112797,-500.0,0.00044383,120]
[331402959,1720347112807,-500.0,0.00044383,120]
[331402960,1720347112816,-500.0,0.00044383,120]
[331402961,1720347112825,-626.78,0.00044383,120]
[331402962,1720347112835,-500.0,0.00044383,120]
[331402963,1720347112846,-500.0,0.00044383,120]
[331402964,1720347112855,-500.0,0.00044383,120]
[331402965,1720347112864,-500.0,0.00044383,120]
[331402966,1720347112874,-500.0,0.00044383,120]
[331402967,1720347112886,-500.0,0.00044383,120]
[331402968,1720347112896,-500.0,0.00044383,120]
[331402969,1720347112907,-500.0,0.00044383,120]
[331402970,1720347112917,-500.0,0.00044383,120]
[331402971,1720347112929,-500.0,0.00044383,120]
[331402972,1720347112939,-500.0,0.00044383,120]
[331402973,1720347112949,-500.0,0.00044383,120]
[331402974,1720347112958,-500.0,0.00044383,120]
[331402975,1720347112968,-500.0,0.00044383,120]
[331402976,1720347112979,-500.0,0.00044383,120]
[331402977,1720347112989,-500.0,0.00044383,120]
[331402978,1720347113001,-500.0,0.00044383,120]
[331402979,1720347113012,-500.0,0.00044383,120]
[331402980,1720347113022,-391.73,0.00044383,120]
[331402981,1720347113032,-500.0,0.00044383,120]
[331402982,1720347113042,-500.0,0.00044383,120]
[331402983,1720347113052,-500.0,0.00044383,120]
[331402984,1720347113062,-500.0,0.00044383,120]
[331402985,1720347113074,-500.0,0.00044383,120]
[331402986,1720347113085,-503.9861517,0.00044383,120]
[331402987,1720347113097,-500.0,0.00044383,120]
[331402988,1720347113111,-500.0,0.00044383,120]
[331402989,1720347113124,-500.0,0.00044383,120]
[331402990,1720347113134,-170.99,0.00044383,120]
[331402991,1720347113144,-500.0,0.00044383,120]
[331402992,1720347113155,-500.0,0.00044383,120]
[331402993,1720347113166,-500.0,0.00044383,120]
[331402994,1720347113177,-500.0,0.00044383,120]
[331402995,1720347113188,-179.34,0.00044383,120]
[331402996,1720347113197,-943.8,0.00044383,120]
[331402997,1720347113206,-500.0,0.00044383,120]
[331402998,1720347113215,-478.86,0.00044383,120]
[331402999,1720347113224,-500.0,0.00044383,120]
[331403000,1720347113233,-555.67,0.00044383,120]
[331403001,1720347113244,-500.0,0.00044383,120]
[331403002,1720347113254,-186.48,0.00044383,120]
[331403003,1720347113264,-500.0,0.00044383,120]
[331403004,1720347113275,-500.0,0.00044383,120]
[331403005,1720347113284,-500.0,0.00044383,120]
[331403006,1720347113294,-500.0,0.00044383,120]
[331403007,1720347113303,-500.0,0.00044383,120]
[331403008,1720347113313,-500.0,0.00044383,120]
[331403009,1720347113322,-500.0,0.00044383,120]
[331403010,1720347113332,-500.0,0.00044383,120]
[331403011,1720347113341,-500.0,0.00044383,120]
[331403012,1720347113352,-639.2,0.00044383,120]
[331403013,1720347113363,-2629.96,0.00044383,120]
[331403014,1720347113373,-500.0,0.00044383,120]
[331403015,1720347113384,-1281.3,0.00044383,120]
[331403016,1720347113394,-260.13,0.00044383,120]
[331403017,1720347113404,-500.0,0.00044383,120]
[331403018,1720347113414,-500.0,0.00044383,120]
[331403019,1720347113424,-500.0,0.00044383,120]
[331403020,1720347113434,-319.96929762,0.00044383,120]
[331403021,1720347113445,-500.0,0.00044383,120]
[331403022,1720347113455,-500.0,0.00044383,120]
[331403023,1720347113467,-500.0,0.00044383,120]
[331403024,1720347113477,-500.0,0.00044383,120]
[331403025,1720347113487,-500.0,0.00044383,120]
[331403026,1720347113497,-233.60776358,0.00044383,120]
[331403027,1720347113508,-306.21,0.00044383,120]
[331403028,1720347113520,-500.0,0.00044383,120]
[331403029,1720347113529,-500.0,0.00044383,120]
[331403030,1720347113540,-559.81,0.00044383,120]
[331403031,1720347113551,-500.0,0.00044383,120]
[331403032,1720347113563,-500.0,0.00044383,120]
[331403033,1720347113574,-189.02032087,0.00044383,120]
[331403034,1720347113584,-365.67,0.00044383,120]
[331403035,1720347113594,-500.0,0.00044383,120]
[331403036,1720347113603,-500.0,0.00044383,120]
[331403037,1720347113613,-311.42,0.00044383,120]
[331403038,1720347113623,-500.0,0.00044383,120]
[331403039,1720347113634,-749.98,0.00044383,120]
[331403040,1720347113643,-500.0,0.00044383,120]
[331403041,1720347113652,-500.0,0.00044383,120]
[331403042,1720347113662,-564.97,0.00044383,120]
[331403043,1720347113672,-183.7,0.00044383,120]
[331403044,1720347113682,-686.76,0.00044383,120]
[331403045,1720347113693,-500.0,0.00044383,120]
[331403046,1720347113705,-1167.5,0.00044383,120]
[331403047,1720347113715,-818.05,0.00044383,120]
[331403048,1720347113725,-500.0,0.00044383,120]
[331403049,1720347113736,-513.53,0.00044383,120]
[331403050,1720347113745,-500.0,0.00044383,120]
[331403051,1720347113754,-500.0,0.00044383,120]
[331403052,1720347113763,-344.82,0.00044383,120]
[331403053,1720347113773,-500.0,0.00044383,120]
[331403054,1720347113783,-718.68,0.00044383,120]
[331403055,1720347113796,-500.0,0.00044383,120]
[331403056,1720347113806,-500.0,0.00044383,120]
[331403057,1720347113815,-386.97,0.00044383,120]
[331403058,1720347113824,-500.0,0.00044383,120]
[331403059,1720347113834,-500.0,0.00044383,120]
[331403060,1720347113843,-400.93,0.00044383,120]
[331403061,1720347113852,-500.0,0.00044383,120]
[331403062,1720347113862,-2844.1,0.00044383,120]
[331403063,1720347113874,-500.0,0.00044383,120]
[331403064,1720347113885,-500.0,0.00044383,21]
[331403065,1720347113895,-500.0,0.00044383,120]
[331403066,1720347113905,-500.0,0.00044383,120]
[331403067,1720347113917,-500.0,0.00044383,120]
[331403068,1720347113928,-500.0,0.00044383,120]
[331403069,1720347113938,-500.0,0.00044383,120]
[331403070,1720347113947,-500.0,0.00044383,120]
[331403071,1720347113957,-500.0,0.00044383,120]
[331403072,1720347113966,-500.0,0.00044383,120]
[331403073,1720347113975,-500.0,0.00044383,120]
[331403074,1720347113985,-500.0,0.00044383,120]
[331403075,1720347113996,-500.0,0.00044383,120]
[331403076,1720347114007,-500.0,0.00044383,120]
[331403077,1720347114016,-500.0,0.00044383,120]
[331403078,1720347114026,-500.0,0.00044383,120]
[331403079,1720347114036,-500.0,0.00044383,120]
[331403080,1720347114045,-500.0,0.00044383,120]
[331403081,1720347114055,-427.57151659,0.00044383,120]
[331403082,1720347114064,-500.0,0.00044383,120]
[331403083,1720347114073,-500.0,0.00044383,120]
[331403084,1720347114083,-500.0,0.00044383,120]
[331403085,1720347114092,-500.0,0.00044383,120]
[331403086,1720347114101,-500.0,0.00044383,120]
[331403087,1720347114112,-500.0,0.00044383,120]
[331403088,1720347114121,-504.17721381,0.00044383,120]
[331403089,1720347114131,-545.7,0.00044383,120]
[331403090,1720347114140,-168.62,0.00044383,120]
[331403091,1720347114149,-561.9,0.00044383,120]
[331403092,1720347114159,-493.07,0.00044383,120]
[331403093,1720347114169,-500.0,0.00044383,120]
[331403094,1720347114179,-500.0,0.00044383,120]
[331403095,1720347114189,-514.07,0.00044383,120]
[331403096,1720347114199,-300.11,0.00044383,120]
[331403097,1720347114209,-231.34,0.00044383,120]
[331403098,1720347114218,-500.0,0.00044383,120]
[331403099,1720347114228,-472.32,0.00044383,7]
[331403100,1720347114239,-500.0,0.00044383,120]
[331403101,1720347114248,-322.06,0.00044383,120]
[331403102,1720347114258,-343.21,0.00044383,120]
[331403103,1720347114267,-500.0,0.00044383,120]
[331403104,1720347114277,-490.62,0.00044383,120]
[331403105,1720347114286,-400.55,0.00044383,120]
[331403106,1720347114296,-500.0,0.00044383,120]
[331403107,1720347114306,-500.0,0.00044383,120]
[331403108,1720347114316,-500.0,0.00044383,120]
[331403109,1720347114326,-174.74,0.00044383,120]
[331403110,1720347114335,-500.0,0.00044383,120]
[331403111,1720347114345,-275.26,0.00044383,120]
[331403112,1720347114355,-260.56,0.00044383,120]
[331403113,1720347114365,-229.15,0.00044383,120]
[331403114,1720347114375,-500.0,0.00044383,120]
[331403115,1720347114384,-500.0,0.00044383,120]
[331403116,1720347114394,-433.38,0.00044383,120]
[331403117,1720347114404,-587.98,0.00044383,120]
[331403118,1720347114413,-23870.39,0.00044383,120]
[331403119,1720347114423,-730.55,0.00044383,120]
[331403120,1720347114434,-519.35788079,0.00044383,120]
[331403121,1720347114443,-257.197174,0.00044383,14]
[331403122,1720347114453,-232.82911,0.00044383,14]
[331403123,1720347114463,-151.0,0.00044383,14]
[331403124,1720347114473,-151.0,0.00044383,14]
[331403125,1720347114483,-151.0,0.00044383,14]
[331403126,1720347114494,-151.0,0.00044383,14]
[331403127,1720347114503,-151.0,0.00044383,14]
[331403128,1720347114513,-210.907925,0.00044383,14]
[331403129,1720347114523,-210.907925,0.00044383,14]
[331403130,1720347114532,-210.907925,0.00044383,14]
[331403131,1720347114543,-210.907923,0.00044383,14]
[331403132,1720347114552,-240.172522,0.00044383,14]
[331403133,1720347114563,-240.172522,0.00044383,14]
[331403134,1720347114573,-240.172522,0.00044383,14]
[331403135,1720347114583,-240.172512,0.00044383,14]
[331403136,1720347114593,-50000.0,0.00044444,2]
[331403137,1720347114602,-2728.63175959,0.00044471,30]
[331403138,1720347114611,-200.0,0.00044472,120]
[331403139,1720347114621,-12302.83130393,0.000445,61]
[331403140,1720347114631,-1167.97586208,0.00044513,30]
[331403141,1720347114640,-154.76146562,0.00044519,55]
[331403142,1720347114650,-8489.18,0.0004452,120]
[331403143,1720347114660,-151.0,0.00044548,120]
[331403144,1720347114669,-156.008579,0.00044558,30]
[331403145,1720347114680,-1460.631627,0.00044558,30]
[331403146,1720347114689,-1735.392134,0.00044558,30]
[331403147,1720347114699,-1045.05367777,0.00044576,30]
[331403148,1720347114709,-154.7557292,0.00044584,30]
[331403149,1720347114718,-154.7557292,0.00044604,30]
[331403150,1720347114728,-539.93,0.00044657,120]
[331403151,1720347114738,-553.55235949,0.00044657,120]
[331403152,1720347114748,-863.71,0.00044657,120]
[331403153,1720347114757,-500.0,0.00044657,120]
[331403154,1720347114767,-758.3,0.00044657,120]
[331403155,1720347114776,-2277.09,0.00044657,120]
[331403156,1720347114787,-500.0,0.00044657,120]
[331403157,1720347114800,-500.0,0.00044657,120]
[331403158,1720347114810,-3622.16,0.00044657,120]
[331403159,1720347114820,-500.0,0.00044657,120]
[331403160,1720347114829,-4420.68,0.00044657,120]
[331403161,1720347114839,-2729.24,0.00044657,120]
[331403162,1720347114848,-1418.25,0.00044657,120]
[331403163,1720347114858,-2088.03,0.00044657,120]
[331403164,1720347114868,-28020.05,0.00044657,120]
[331403165,1720347114877,-500.0,0.00044657,120]
[331403166,1720347114888,-1013.3,0.00044657,120]
[331403167,1720347114898,-500.0,0.00044657,120]
[331403168,1720347114908,-1928.91,0.00044657,120]
[331403169,1720347114918,-16482.27,0.00044657,120]
[331403170,1720347114929,-500.0,0.00044657,120]
[331403171,1720347114938,-500.0,0.00044657,120]
[331403172,1720347114948,-500.0,0.00044657,120]
[331403173,1720347114959,-500.0,0.00044657,120]
[331403174,1720347114969,-1391.73,0.00044657,120]
[331403175,1720347114979,-514.49269157,0.00044657,120]
[331403176,1720347114989,-980.42,0.00044657,120]
[331403177,1720347114999,-500.0,0.00044657,120]
[331403178,1720347115009,-717.05,0.00044657,60]
[331403179,1720347115019,-500.0,0.00044657,120]
[331403180,1720347115029,-546.05884791,0.00044657,120]
[331403181,1720347115039,-500.0,0.00044657,120]
[331403182,1720347115049,-1322.06,0.00044657,120]
[331403183,1720347115059,-1100.84,0.00044657,120]
[331403184,1720347115069,-512.60721701,0.00044657,120]
[331403185,1720347115079,-500.0,0.00044657,120]
[331403186,1720347115088,-2540.19,0.00044657,120]
[331403187,1720347115099,-544.99,0.00044657,120]
[331403188,1720347115111,-1098.97,0.00044657,120]
[331403189,1720347115120,-500.0,0.00044657,120]
[331403190,1720347115130,-500.0,0.00044657,120]
[331403191,1720347115140,-1343.21,0.00044657,120]
[331403192,1720347115150,-579.28430511,0.00044657,120]
[331403193,1720347115159,-500.0,0.00044657,120]
[331403194,1720347115169,-500.0,0.00044657,120]
[331403195,1720347115179,-500.0,0.00044657,120]
[331403196,1720347115189,-500.0,0.00044657,120]
[331403197,1720347115199,-500.0,0.00044657,120]
[331403198,1720347115209,-500.0,0.00044657,120]
[331403199,1720347115219,-500.0,0.00044657,120]
[331403200,1720347115229,-500.0,0.00044657,120]
[331403201,1720347115239,-500.0,0.00044657,120]
[331403202,1720347115249,-500.0,0.00044657,120]
[331403203,1720347115258,-538.12,0.00044657,120]
[331403204,1720347115269,-500.0,0.00044657,120]
[331403205,1720347115279,-500.0,0.00044657,120]
[331403206,1720347115288,-933.38,0.00044657,120]
[331403207,1720347115299,-500.0,0.00044657,120]
[331403208,1720347115308,-500.0,0.00044657,120]
[331403209,1720347115318,-500.0,0.00044657,120]
[331403210,1720347115327,-500.0,0.00044657,120]
[331403211,1720347115337,-500.0,0.00044657,120]
[331403212,1720347115347,-514.68770062,0.00044657,120]
[331403213,1720347115358,-578.46721144,0.00044657,120]
[331403214,1720347115368,-500.0,0.00044657,120]
[331403215,1720347115377,-500.0,0.00044657,120]
[331403216,1720347115387,-1587.98,0.00044657,120]
[331403217,1720347115397,-500.0,0.00044657,120]
[331403218,1720347115407,-645.75,0.00044657,120]
[331403219,1720347115416,-500.0,0.00044657,120]
[331403220,1720347115427,-500.0,0.00044657,120]
[331403221,1720347115437,-500.0,0.00044657,120]
[331403222,1720347115450,-1804.61,0.00044657,120]
[331403223,1720347115460,-500.0,0.00044657,120]
[331403224,1720347115469,-500.0,0.00044657,120]
[331403225,1720347115479,-1400.55,0.00044657,120]
[331403226,1720347115489,-528.5247965,0.00044657,120]
[331403227,1720347115675,-500.0,0.00044657,120]
[331403228,1720347115686,-764.78,0.00044657,120]
[331403229,1720347115695,-500.0,0.00044657,120]
[331403230,1720347115705,-500.0,0.00044657,120]
[331403231,1720347115715,-638.28,0.00044657,120]
[331403232,1720347115725,-587.14323065,0.00044657,120]
[331403233,1720347115734,-993.07,0.00044657,120]
[331403234,1720347115744,-500.0,0.00044657,120]
[331403235,1720347115754,-372.52358913,0.00044657,120]
[331403236,1720347115765,-500.0,0.00044657,120]
[331403237,1720347115774,-879.0,0.00044657,120]
[331403238,1720347115784,-500.0,0.00044657,120]
[331403239,1720347115799,-1084.46,0.00044657,120]
[331403240,1720347115809,-2280.31,0.00044657,120]
[331403241,1720347115819,-506.68,0.00044657,120]
[331403242,1720347115829,-1460.56,0.00044657,120]
[331403243,1720347115839,-500.0,0.00044657,120]
[331403244,1720347115849,-1174.74,0.00044657,120]
[331403245,1720347115859,-500.0,0.00044657,120]
[331403246,1720347115872,-500.0,0.00044657,120]
[331403247,1720347115883,-500.0,0.00044657,120]
[331403248,1720347115893,-547.7,0.00044657,120]
[331403249,1720347115903,-500.0,0.00044657,120]
[331403250,1720347115913,-1275.26,0.00044657,120]
[331403251,1720347115922,-500.0,0.00044657,120]
[331403252,1720347115932,-620.89,0.00044657,120]
[331403253,1720347115942,-2777.24,0.00044657,120]
[331403254,1720347115952,-500.0,0.00044657,120]
[331403255,1720347115962,-608.36,0.00044657,120]
[331403256,1720347115972,-500.0,0.00044657,120]
[331403257,1720347115982,-500.0,0.00044657,120]